Cogmind - Beta 15 @@@ ROGUE MODE // 2025.06.09 @ 02:10:42 Player: Florist Result: Destroyed by P-80 Master with Gamma Rifle Performance ------------- Evolutions (7) 3500 Regions Visited (12) 2400 Robots Destroyed (153) 765 Value Destroyed (3450) 3450 Prototype IDs (23) 460 Alien Tech Used (2) 400 Bonus (1205) 1205 TOTAL SCORE: 12180 Bonus ------- High Alert Combat Kills 27 Follower Combat Kills 378 Registered with UFD 300 Met Optimus in HQ 500 Cogmind --------- Core Integrity 0/1300 Matter 290/300 Energy 150/150 System Corruption 24% Temperature Cool (0) Movement Core (250) Ox4 Location -3/Quarantine Parts ------- > --- POWER (2) -------- Micro Antimatter Reactor > --- PROPULSION (7) --- (None) > --- UTILITY (10) ----- Machine Analyzer Experimental Signal Interpreter Improved Transmission Jammer Advanced System Shield Advanced System Shield > --- WEAPON (2) ------- Force Lance > --- INVENTORY (5) ---- Biometal Medium Treads Impulse Thruster Field Propulsion Array Peak State ------------ > --- POWER ------------ Micro Fission Core Light Particle Reactor > --- PROPULSION ------- Cooled Cesium-ion Thruster Advanced Surge Thruster Advanced Surge Thruster Advanced Surge Thruster Cooled Field Propulsion Drive Cooled Field Propulsion Drive Cooled Impulse Thruster > --- UTILITY ---------- Advanced Power Amplifier Advanced Cooling System Small Storage Unit Structural Scanner Machine Analyzer Experimental Signal Interpreter Experimental Thermal Shield Improved Hacking Suite Advanced System Shield Advanced System Shield > --- WEAPON ----------- Falx > --- INVENTORY -------- Antimatter Reactor Advanced Surge Thruster Advanced Surge Thruster Improved Transmission Jammer Cloaking Device Advanced System Shield Linear Accelerator [Rating: 127] Favorites ----------- Power Ion Engine Engine Ion Engine Power Core Improved Fusion Compressor Reactor Light Antimatter Reactor Propulsion Improved Treads Treads Improved Treads Leg Carbon-fiber Leg Hover Unit Improved Antigrav System Flight Unit Improved Flight Unit Utility Huge Storage Unit Device Structural Scanner Storage Huge Storage Unit Processor Experimental Signal Interpreter Hackware Hacking Suite Protection Hardened Light Armor Plating Weapon Improved Assault Rifle Energy Gun Small Laser Energy Cannon Core Cannon Ballistic Gun Improved Assault Rifle Launcher Rocket Launcher Special Weapon CPS Tube Impact Weapon Great Maul Slashing Weapon Falx Piercing Weapon Force Lance Build | -11 -10 -9 -9 -9 -9 -6 -5 -5 -5 -4 -3 -3 ------- Run | Yrd Mat Mat Sto Rec Scr Fac Fac Was Fac Fac Res Qua Slots Evolved 14 | . . 2 . . . 6 2 . . 2 2 . Power 1 | . . . . . . . . . . 1 . . Propulsion 5 | . . 2 . . . 2 . . . . 1 . Utility 8 | . . . . . . 4 2 . . 1 1 . Weapon . | . . . . . . . . . . . . . Parts Attached 121 | 7 13 23 9 . 6 11 1 1 17 9 12 12 Power 20 | 1 3 2 1 . . 2 . 1 2 1 5 2 Engine 9 | 1 2 2 1 . . 2 . . 1 . . . Core 4 | . 1 . . . . . . . 1 . 1 1 Reactor 7 | . . . . . . . . 1 . 1 4 1 Propulsion 40 | 2 . 14 2 . 4 3 . . 6 2 3 4 Treads 11 | 2 . 8 1 . . . . . . . . . Leg 6 | . . 6 . . . . . . . . . . Wheel . | . . . . . . . . . . . . . Hover 2 | . . . . . . . . . . . . 2 Flight 21 | . . . 1 . 4 3 . . 6 2 3 2 Utility 37 | 2 6 2 2 . 1 5 1 . 5 6 4 3 Device 17 | 1 2 . . . . 2 . . 4 3 3 2 Storage 4 | 1 2 . . . 1 . . . . . . . Processor 2 | . . . . . . 1 . . . 1 . . Hackware 8 | . . . . . . 2 1 . 1 2 1 1 Protection 6 | . 2 2 2 . . . . . . . . . Artifact . | . . . . . . . . . . . . . Weapon 24 | 2 4 5 4 . 1 1 . . 4 . . 3 Energy Gun 5 | 2 2 1 . . . . . . . . . . Energy Cannon 1 | . . . . . . . . . . . . 1 Ballistic Gun 10 | . 2 4 3 . . . . . . . . 1 Ballistic Cannon . | . . . . . . . . . . . . . Launcher 3 | . . . . . 1 1 . . 1 . . . Special Weapon 1 | . . . . . . . . . 1 . . . Impact Weapon 1 | . . . 1 . . . . . . . . . Slashing Weapon 2 | . . . . . . . . . 2 . . . Piercing Weapon 1 | . . . . . . . . . . . . 1 Special Melee Weapon . | . . . . . . . . . . . . . Unidentified Prototypes 15 | . . 2 1 . . 1 . . 5 2 2 2 Corrupted Parts 1 | . 1 . . . . . . . . . . . System Corruption 4 | . 4 . . . . . . . . . . . Parts Lost 41 | . 4 9 1 . . . . . 2 2 13 10 Power 7 | . 2 2 . . . . . . . . 2 1 Propulsion 14 | . . 4 . . . . . . . . 6 4 Utility 15 | . 1 2 1 . . . . . 1 2 4 4 Weapon 5 | . 1 1 . . . . . . 1 . 1 1 Highest Loss Streak 12 | . 2 2 1 . . . . . 1 1 12 5 To Critical Strikes . | . . . . . . . . . . . . . Average Backups 15 | 3 11 18 24 25 24 5 5 5 7 7 5 2 Power . | . . . . . . . 1 . . . . . Propulsion 4 | 1 2 5 8 8 7 . 1 1 1 2 1 1 Utility 6 | . 4 6 9 10 9 3 2 2 4 4 3 . Weapon 4 | . 4 5 6 7 6 . . . . . . . Tool/Special . | . . . . . . . . . . . . . Unused Backups 112 | . 2 2 4 . 10 . . . 91 . 1 2 Power 1 | . . . . . . . . . 1 . . . Propulsion 13 | . 1 . 1 . 2 . . . 7 . . 2 Utility 52 | . . 1 1 . 4 . . . 46 . . . Weapon 44 | . 1 1 2 . 4 . . . 35 . 1 . Tool/Special 2 | . . . . . . . . . 2 . . . Average Slot Usage (%) 94 | . 97 91 99 100 99 98 97 100 95 86 85 55 Engine 8 | . 12 10 10 11 11 6 5 5 4 1 . . Treads 22 | . 27 13 43 44 42 . . . . . . . Leg 4 | . . 25 . . . . . . . . . . Flight 9 | . . . . . 1 39 35 35 34 30 30 9 Device 5 | . 4 . . . 3 12 14 17 16 13 15 15 Storage 9 | . 14 11 11 11 11 6 5 5 5 5 3 . Processor 1 | . . . . . . 4 5 5 5 9 9 9 Hackware 4 | . . . . . . 12 17 17 17 14 13 13 Protection 6 | . 7 8 11 11 7 . . . . . . . Energy Gun 2 | . 18 . . . . . . . . . . . Ballistic Gun 13 | . 9 21 20 22 21 . . . . . . 2 Peak Build Rating 127 | 7 10 24 25 24 26 53 58 61 86 105 127 124 Average Rating 34 | 5 8 17 23 24 23 45 57 58 69 91 109 77 On Entrance 38 | . 7 9 21 24 24 22 53 58 59 86 89 47 Naked Turns . | . . . . . . . . . . . . . Heaviest Build 98 | 14 92 96 98 96 96 28 29 29 31 29 41 17 Greatest Support 92 | 40 40 92 92 92 92 31 31 31 31 29 48 39 Greatest Overweight (x) 4 | . 2 4 1 1 1 . . . . 1 1 4 Average Overweight (x) . | . . 1 . 1 . . . . . . . . Largest Inventory Capacity 25 | 8 25 25 25 25 25 8 8 8 8 8 8 5 Average Capacity 18 | 7 18 25 25 25 24 8 8 8 8 8 7 5 Most Carried 25 | 5 15 25 25 25 25 8 6 6 8 8 8 5 Average Carried 16 | 3 11 18 24 25 24 5 5 5 7 7 5 2 Final Capacity 25 | 8 25 25 25 25 8 8 8 8 8 8 5 5 Final Carried 25 | 5 14 25 25 25 8 7 5 6 8 7 5 4 Class Distribution -------------------- 44% | Mutant 22% | Commander-Mutant 18% | Hacker-Scout 4% | Hacker-Ninja 3% | Scavenger-Mutant Dominant Class ---------------- Mutant | -10/Materials Mutant | -9/Materials Mutant | -9/Storage Mutant | -9/Recycling Commander-Mutant | -9/Scraptown Hacker-Scout | -6/Factory Hacker-Scout | -5/Factory Hacker-Scout | -5/Waste Hacker-Scout | -5/Factory Hacker-Scout | -4/Factory Hacker-Scout | -3/Research Hacker-Mutant | -3/Quarantine Resources | -11 -10 -9 -9 -9 -9 -6 -5 -5 -5 -4 -3 -3 ----------- Run | Yrd Mat Mat Sto Rec Scr Fac Fac Was Fac Fac Res Qua Matter Collected 3360 | 260 215 1220 335 103 16 72 . 190 290 50 320 289 Remotely . | . . . . . . . . . . . . . Salvage Created 7131 | 176 920 2111 442 162 . 72 . 1089 1267 76 214 602 Parts 341 | 15 49 139 37 8 . . . 3 48 1 5 36 Haulers Intercepted 18 | . 2 6 4 . . . . . 6 . . . Recyclers Shooed 11 | . 3 6 . . . . . . 1 . . 1 Parts Field Recycled . | . . . . . . . . . . . . . Retrieved Matter . | . . . . . . . . . . . . . Parts Self-Destructed . | . . . . . . . . . . . . . Prevented . | . . . . . . . . . . . . . Kills | -11 -10 -9 -9 -9 -9 -6 -5 -5 -5 -4 -3 -3 ------- Run | Yrd Mat Mat Sto Rec Scr Fac Fac Was Fac Fac Res Qua Combat Hostiles Destroyed 70 | . 18 35 4 4 . . . 4 . . . 5 Melee 5 | . . . . . . . . . . . . 5 Guns 59 | . 18 33 4 4 . . . . . . . . AOE 6 | . . 2 . . . . . 4 . . . . Classes Destroyed 14 | 2 8 1 . . . 1 . 1 . . . 1 Worker 10 | . 3 6 . . . . . . 1 . . . Builder 4 | . 3 . . . . . . . 1 . . . Tunneler 6 | 6 . . . . . . . . . . . . Hauler 18 | . 2 6 4 . . . . . 6 . . . Recycler 14 | 1 2 6 . . . . . . 2 . 1 2 Mechanic 3 | . . . . . . 1 . . 2 . . . Operator 6 | . 2 3 . . . . . . 1 . . . Watcher 21 | . 2 5 1 . . 1 . . 8 2 2 . Swarmer 21 | . 9 10 1 1 . . . . . . . . Grunt 28 | . 8 17 2 1 . . . . . . . . Sentry 12 | . . 8 2 2 . . . . . . . . Programmer 5 | . . . . . . . . . . . . 5 Compactor 4 | . . . . . . . . 4 . . . . Subdweller 1 | . 1 . . . . . . . . . . . Best Kill Streak 6 | 3 5 6 2 3 . 1 . 4 2 1 1 5 Combat Bots Only 4 | . 3 4 1 3 . . . 4 . . . 3 Max Kills in Single Turn 5 | 1 2 5 2 2 . 1 . 2 1 1 1 1 Gunslinging 1 | . 1 . . . . . . . . . . . Exploded 2 | . . 2 . . . . . 2 . . . . Melee 1 | . . . . . . . . . . . . 1 Uniques/NPCs Destroyed . | . . . . . . . . . . . . . Combat | -11 -10 -9 -9 -9 -9 -6 -5 -5 -5 -4 -3 -3 -------- Run | Yrd Mat Mat Sto Rec Scr Fac Fac Was Fac Fac Res Qua Hostile Shots Fired 617 | . 114 188 33 19 . 3 . . 22 23 104 111 Missed 199 | . 28 52 6 7 . 1 . . 12 8 53 32 Hits 418 | . 86 136 27 12 . 2 . . 10 15 51 79 Projectile 418 | . 86 136 27 12 . 2 . . 10 15 51 79 Critical Strikes 11 | . 2 2 . . . . . . . . 4 3 Part Disruptions 2 | . . . . . . . . . . . 2 . Damage Taken 6579 | . 929 1650 411 162 . 40 . 17 157 226 1161 1826 Core 1847 | . 195 301 30 . . . . . 49 27 235 1010 Absorbed by Shields . | . . . . . . . . . . . . . Regen/Repaired (Parts) 211 | . 185 . . . . . . 2 24 . . . Core Remaining (%) 71 | 100 22 . . . 17 100 . . 95 97 . . Volleys Fired 362 | 19 106 173 30 13 . . . 3 . . . 18 Largest 2 | 2 2 2 2 2 . . . 1 . . . 1 Hottest 90 | 90 90 46 46 46 . . . 39 . . . 35 Shots Fired 692 | 38 205 343 59 26 . . . 3 . . . 18 Gun 689 | 38 205 343 59 26 . . . . . . . 18 Cannon . | . . . . . . . . . . . . . Launcher 3 | . . . . . . . . 3 . . . . Special . | . . . . . . . . . . . . . Kinetic 446 | . . 343 59 26 . . . . . . . 18 Thermal 243 | 38 205 . . . . . . . . . . . Explosive 3 | . . . . . . . . 3 . . . . Electromagnetic . | . . . . . . . . . . . . . Robot Hit Streak 16 | 7 13 16 16 8 . . . . . . . 1 Robot Miss Streak 6 | 3 5 6 1 2 . . . 1 . . . 1 Penetration Max . | . . . . . . . . . . . . . Secondary Targets 4 | . 2 2 . . . . . . . . . . Max Gunslinging Chain 1 | . 1 1 . . . . . . . . . . Shots Hit Robots 527 | 23 127 227 48 18 . 3 . . 45 7 7 22 Core Hits 204 | 8 48 93 14 5 . . . 6 15 2 2 11 Critical Kills 1 | . . . . . . . . . 1 . . . Critical Parts Destroyed 2 | . . 1 . . . 1 . . . . . . Critical Strikes 18 | 3 5 1 . . . 1 . . 3 . 1 4 Burn 8 | 3 5 . . . . . . . . . . . Destroy 1 | . . 1 . . . . . . . . . . Smash 2 | . . . . . . 1 . . 1 . . . Sever 3 | . . . . . . . . . 2 . 1 . Impale 4 | . . . . . . . . . . . . 4 Melee Attacks 219 | . . . 3 . . 18 . . 108 24 40 26 Impact 29 | . . . 3 . . 18 . . 8 . . . Slashing 164 | . . . . . . . . . 100 24 40 . Piercing 26 | . . . . . . . . . . . . 26 Sneak Attacks 21 | . . . . . . 1 . . 17 . 1 2 Combat Hostiles . | . . . . . . . . . . . . . Follow-up Attacks . | . . . . . . . . . . . . . Damage Inflicted 12356 | 247 1539 3592 720 295 . 222 . 610 3287 384 406 1054 Guns 5971 | 247 1539 3088 720 295 . . . . . . . 82 Cannons . | . . . . . . . . . . . . . Explosions 1114 | . . 504 . . . . . 610 . . . . Melee 5263 | . . . . . . 222 . . 3287 384 406 964 Ramming 8 | . . . . . . . . . . . . 8 Kinetic 4185 | . . 3088 720 295 . . . . . . . 82 Thermal 1786 | 247 1539 . . . . . . . . . . . Explosive 1114 | . . 504 . . . . . 610 . . . . Electromagnetic . | . . . . . . . . . . . . . Impact 568 | . . . . . . 222 . . 346 . . . Slashing 3731 | . . . . . . . . . 2941 384 406 . Piercing 964 | . . . . . . . . . . . . 964 Highest Corruption 24 | . 4 . . . . . . . . . 12 24 Average Corruption 13 | . 4 . . . . . . . . . 8 14 Corruption Purged . | . . . . . . . . . . . . . Corruption Blocked . | . . . . . . . . . . . . . Effects 24 | . . . . . . . . . . . 7 17 Message Errors 5 | . . . . . . . . . . . 2 3 Matter Fused 5 | . . . . . . . . . . . 1 4 Heat Flow Errors 2 | . . . . . . . . . . . . 2 Energy Discharges 3 | . . . . . . . . . . . . 3 Parts Rejected 1 | . . . . . . . . . . . 1 . Data Loss (minor) 5 | . . . . . . . . . . . 1 4 Data Loss (major) 1 | . . . . . . . . . . . . 1 Misdirections 2 | . . . . . . . . . . . 2 . Overload Shots . | . . . . . . . . . . . . . Overflow Damage 1015 | . . 102 . . . 143 . . 621 16 64 69 Projectiles . | . . . . . . . . . . . . . Explosions 102 | . . 102 . . . . . . . . . . Melee 913 | . . . . . . 143 . . 621 16 64 69 Knockbacks 1 | . . . . . . . . . 1 . . . Impact 1 | . . . . . . . . . 1 . . . Kinetic . | . . . . . . . . . . . . . Secondary . | . . . . . . . . . . . . . Self-Inflicted Damage 78 | . . 74 . . . . . . . . . 4 Shots 1 | . . 1 . . . . . . . . . . Rammed 6 | . . . . . . . . . . . . 6 Targets Rammed 6 | . . . . . . . . . . . . 6 Kicked . | . . . . . . . . . . . . . Crushed . | . . . . . . . . . . . . . Highest Temperature 462 | 150 462 24 6 6 . 5 2 2 282 419 380 202 Average Temperature 73 | 54 128 5 4 4 . 3 2 2 36 89 62 110 Received Heat Transfer 1146 | . 249 555 141 57 . . . . 9 . 105 30 Effects 15 | . 11 . . . . . . . . 3 1 . Shutdowns 2 | . 1 . . . . . . . . 1 . . Energy Bleed 1 | . . . . . . . . . . . 1 . Interference 8 | . 6 . . . . . . . . 2 . . Matter Decay 1 | . 1 . . . . . . . . . . . Damage (major) 3 | . 3 . . . . . . . . . . . Siege Activations . | . . . . . . . . . . . . . Martial Activations . | . . . . . . . . . . . . . Shielding Activations . | . . . . . . . . . . . . . Robots Disrupted . | . . . . . . . . . . . . . Combat Hostiles . | . . . . . . . . . . . . . Robots Corrupted 1 | . . . . . . 1 . . . . . . Combat Hostiles . | . . . . . . . . . . . . . Parts Fried 2 | . . . . . . 2 . . . . . . Impact Corruptions 5 | . . . . . . 4 . . 1 . . . Robots Melted . | . . . . . . . . . . . . . Combat Hostiles . | . . . . . . . . . . . . . Parts Melted 12 | 4 8 . . . . . . . . . . . Heat Transferred 5292 | 855 4437 . . . . . . . . . . . Parts Sabotaged . | . . . . . . . . . . . . . Parts Stolen . | . . . . . . . . . . . . . Parts Stripped . | . . . . . . . . . . . . . Power Chain Reactions . | . . . . . . . . . . . . . Alert | -11 -10 -9 -9 -9 -9 -6 -5 -5 -5 -4 -3 -3 ------- Run | Yrd Mat Mat Sto Rec Scr Fac Fac Was Fac Fac Res Qua Maximum Alert Level 2 | . . 2 . . . . . . 1 2 2 1 Low Security (%) 78 | 100 100 49 100 100 . 100 100 100 66 68 73 69 Level 1 18 | . . 37 . . . . . . 33 30 23 30 Level 2 3 | . . 12 . . . . . . . 1 3 . Level 3 . | . . . . . . . . . . . . . Level 4 . | . . . . . . . . . . . . . Level 5 . | . . . . . . . . . . . . . High Security . | . . . . . . . . . . . . . Max Security . | . . . . . . . . . . . . . Peak Influence 473 | 10 145 464 194 73 . 16 . 42 350 443 473 247 Initial 247 | . . . 193 73 . . . . 8 170 232 247 Average 99 | 1 46 181 73 10 . 1 . 10 108 222 129 181 Influence Increases 5084 | 35 560 1133 649 89 . 72 . 98 864 523 791 270 Destroy 0b10 Robot/C 1540 | . 340 700 320 80 . . . . . . . 100 Destroy 0b10 Robot/NC 420 | 35 70 130 35 . . 10 . . 105 10 15 10 Destroy Leader 430 | . 78 212 92 . . 2 . . 28 4 4 10 Allied During Kill 105 | . . . 105 . . . . . . . . . Successful Hack 181 | . 27 4 5 9 . 18 . . 63 33 22 . Disable Machine 165 | . . 15 60 . . 15 . . 30 15 . 30 Destroy Structure 323 | . . 27 2 . . 12 . 98 98 26 60 . Partial Spotted 390 | . . . . . . 15 . . 105 90 180 . Lose Combat Pursuer 1530 | . 45 45 30 . . . . . 435 345 510 120 Influence Decreases 4929 | 35 560 674 918 251 28 72 . 86 528 428 794 555 Entered New Map 997 | . . . 266 117 28 . . . 4 178 211 193 Time Decay 3080 | 35 520 594 472 134 . 72 . 36 514 230 211 262 Lost Part 380 | . 40 80 . . . . . . 10 20 130 100 Lost Ally 230 | . . . 180 . . . . 50 . . . . Purge Threat 242 | . . . . . . . . . . . 242 . Squads Dispatched 50 | . 3 5 2 . . 10 . . 18 2 9 1 Investigation 27 | . 1 2 . . . 7 . . 13 1 3 . Extermination 11 | . . . . . . 1 . . 5 1 3 1 Reinforcement 10 | . 2 3 . . . 2 . . . . 3 . Assault 2 | . . . 2 . . . . . . . . . Garrison . | . . . . . . . . . . . . . Intercept . | . . . . . . . . . . . . . Searches Triggered . | . . . . . . . . . . . . . Construction Impeded . | . . . . . . . . . . . . . Haulers Reinforced . | . . . . . . . . . . . . . Active Scanning Responses . | . . . . . . . . . . . . . Cargo Convoy Interrupts . | . . . . . . . . . . . . . Stealth | -11 -10 -9 -9 -9 -9 -6 -5 -5 -5 -4 -3 -3 --------- Run | Yrd Mat Mat Sto Rec Scr Fac Fac Was Fac Fac Res Qua Distress Signals 17 | . 4 2 3 . . . . . 3 . 3 2 Communications Jammed . | . . . . . . . . . . . . . Distress Signals . | . . . . . . . . . . . . . Times Spotted 252 | . 32 57 17 3 . 3 . 8 36 28 51 17 Peak Tracking Total 17 | . 4 6 5 3 . 2 . 6 6 7 17 9 Tactical Retreats 41 | . 2 3 1 . . . . 1 13 7 11 3 Traps | -11 -10 -9 -9 -9 -9 -6 -5 -5 -5 -4 -3 -3 ------- Run | Yrd Mat Mat Sto Rec Scr Fac Fac Was Fac Fac Res Qua Traps Triggered 14 | . 1 3 . . . . 1 . 5 1 1 2 Indirectly . | . . . . . . . . . . . . . Trap Hack Attempts . | . . . . . . . . . . . . . Triggered . | . . . . . . . . . . . . . Disarmed . | . . . . . . . . . . . . . Reprogrammed . | . . . . . . . . . . . . . Reused . | . . . . . . . . . . . . . Traps Extracted . | . . . . . . . . . . . . . Installed . | . . . . . . . . . . . . . Triggered . | . . . . . . . . . . . . . Machines | -11 -10 -9 -9 -9 -9 -6 -5 -5 -5 -4 -3 -3 ---------- Run | Yrd Mat Mat Sto Rec Scr Fac Fac Was Fac Fac Res Qua Machines Disabled 11 | . . 1 4 . . 1 . . 2 1 . 2 Max in Single Turn 1 | . . 1 1 . . 1 . . 1 1 . 1 Garrison Access 5 | . . . . . . 2 . . 2 1 . . Machines Repaired . | . . . . . . . . . . . . . Machines Dismantled . | . . . . . . . . . . . . . Machines Sabotaged . | . . . . . . . . . . . . . Overloaded Fab Kills . | . . . . . . . . . . . . . Hacking | -11 -10 -9 -9 -9 -9 -6 -5 -5 -5 -4 -3 -3 --------- Run | Yrd Mat Mat Sto Rec Scr Fac Fac Was Fac Fac Res Qua Machines Accessed 87 | . 9 6 4 5 2 12 1 . 26 12 9 1 Terminals 55 | . 6 6 4 5 . 5 1 . 11 11 5 1 Fabricators 3 | . . . . . . . . . 3 . . . Repair Stations 2 | . 1 . . . . . . . 1 . . . Recycling Units 17 | . 2 . . . . 5 . . 8 . 2 . Scanalyzers 2 | . . . . . . . . . 1 . 1 . Garrison Access 6 | . . . . . . 2 . . 2 1 1 . Total Hacks 219 | . 26 13 5 10 7 23 1 . 70 35 26 3 Successful 140 | . 15 8 4 6 7 15 1 . 44 26 12 2 Failed 79 | . 11 5 1 4 . 8 . . 26 9 14 1 Catastrophic 12 | . 2 . . 1 . 1 . . 3 2 3 . Database Lockouts . | . . . . . . . . . . . . . Manual 108 | . 8 11 4 6 . 14 1 . 29 21 14 . Terminals 152 | . 15 13 5 10 . 14 1 . 39 32 20 3 Fabricators 8 | . . . . . . . . . 8 . . . Repair Stations 8 | . 5 . . . . . . . 3 . . . Recycling Units 26 | . 6 . . . . 6 . . 11 . 3 . Scanalyzers 6 | . . . . . . . . . 5 . 1 . Garrison Access 12 | . . . . . . 3 . . 4 3 2 . Terminal Hacks 54 | . 4 2 3 1 7 4 . . 12 13 6 2 Record 7 | . . . . . 3 . . . . 2 . 2 Robot Analysis 4 | . . . . . 4 . . . . . . . Prototype ID Bank 1 | . . . . . . . . . . 1 . . Open Door 3 | . . . 3 . . . . . . . . . Level Access Points 2 | . . . . . . . . . 1 1 . . Branch Access Points 3 | . . . . . . 1 . . 1 . 1 . Emergency Access Points 2 | . . 1 . . . . . . 1 . . . Terminal Index 2 | . . . . . . . . . 1 1 . . Recycling Unit Index 2 | . . . . . . . . . . 1 1 . Alert Level 3 | . . . . 1 . . . . 1 . 1 . Unreport Threat 2 | . . . . . . . . . . . 2 . Locate Traps 13 | . 3 . . . . 1 . . 5 4 . . Maintenance Status 3 | . . . . . . 1 . . . 1 1 . Recall Investigation 1 | . . . . . . . . . 1 . . . Recall Extermination 1 | . . . . . . . . . 1 . . . Hauler Manifests 1 | . . . . . . . . . . 1 . . Registered Prototypes 1 | . . . . . . . . . . 1 . . Zone Layout 3 | . 1 1 . . . 1 . . . . . . Fabricator Hacks 7 | . . . . . . . . . 7 . . . Network Status 1 | . . . . . . . . . 1 . . . Load Schematic 3 | . . . . . . . . . 3 . . . Build 3 | . . . . . . . . . 3 . . . Repair Station Hacks 6 | . 4 . . . . . . . 2 . . . Scan Component 3 | . 2 . . . . . . . 1 . . . Repair 3 | . 2 . . . . . . . 1 . . . Recycling Unit Hacks 3 | . 3 . . . . . . . . . . . Retrieve Components 3 | . 3 . . . . . . . . . . . Scanalyzer 6 | . . . . . . . . . 5 . 1 . Insert Component 3 | . . . . . . . . . 2 . 1 . Analyze 3 | . . . . . . . . . 3 . . . Garrison Access Hacks 5 | . . . . . . 2 . . 2 1 . . Seal Access 5 | . . . . . . 2 . . 2 1 . . Unauthorized Hacks 59 | . 4 6 1 5 . 9 1 . 16 12 5 . Terminals 44 | . 4 6 1 5 . 4 1 . 8 12 3 . Assimilate 2 | . . 1 . . . . . . 1 . . . Botnet 41 | . 4 5 1 5 . 4 1 . 7 11 3 . Operators 1 | . . . . . . . . . . 1 . . Fabricators . | . . . . . . . . . . . . . Repair Stations . | . . . . . . . . . . . . . Recycling Units 15 | . . . . . . 5 . . 8 . 2 . Fedlink 15 | . . . . . . 5 . . 8 . 2 . Scanalyzers . | . . . . . . . . . . . . . Garrison Access . | . . . . . . . . . . . . . Data Cores Recovered 1 | . . . . . . . . . 1 . . . Used . | . . . . . . . . . . . . . Hacking Detections 52 | . 6 3 2 2 . 6 . . 19 6 7 1 Full Trace Events 10 | . 2 . . . . 2 . . 5 . 1 . Feedback Events . | . . . . . . . . . . . . . Feedback Blocked . | . . . . . . . . . . . . . Robot Schematics Acquired . | . . . . . . . . . . . . . Robots Built . | . . . . . . . . . . . . . Authchips . | . . . . . . . . . . . . . Time . | . . . . . . . . . . . . . Total Robot Build Rating . | . . . . . . . . . . . . . Part Schematics Acquired 2 | . . . . . . . . . 2 . . . Parts Built 6 | . . . . . . . . . 6 . . . Authchips . | . . . . . . . . . . . . . Time 292 | . . . . . . . . . 292 . . . Total Part Build Rating 42 | . . . . . . . . . 42 . . . Parts Repaired 3 | . 2 . . . . . . . 1 . . . Time 83 | . 52 . . . . . . . 31 . . . Parts Recycled . | . . . . . . . . . . . . . Recycled Matter . | . . . . . . . . . . . . . Retrieved Matter . | . . . . . . . . . . . . . Retrieved Components 23 | . 23 . . . . . . . . . . . Parts Scanalyzed 2 | . . . . . . . . . 2 . . . Part Schematics Acquired 2 | . . . . . . . . . 2 . . . Parts Damaged . | . . . . . . . . . . . . . Bothacking | -11 -10 -9 -9 -9 -9 -6 -5 -5 -5 -4 -3 -3 ------------ Run | Yrd Mat Mat Sto Rec Scr Fac Fac Was Fac Fac Res Qua Used RIF Installer . | . . . . . . . . . . . . . Robots Hacked . | . . . . . . . . . . . . . Non-combat . | . . . . . . . . . . . . . Combat . | . . . . . . . . . . . . . Robot Hacks Applied . | . . . . . . . . . . . . . Relay Couplers Released . | . . . . . . . . . . . . . Fabnet Peak Effective % . | . . . . . . . . . . . . . Robots Rewired 5 | . . . . 5 . . . . . . . . Allies Hacked . | . . . . . . . . . . . . . Hacks Repelled . | . . . . . . . . . . . . . Allies | -11 -10 -9 -9 -9 -9 -6 -5 -5 -5 -4 -3 -3 -------- Run | Yrd Mat Mat Sto Rec Scr Fac Fac Was Fac Fac Res Qua Total Allies 37 | . . . 12 5 . . . 20 . . . . Largest Group 20 | . . . 10 5 5 . . 20 . . . . Highest-Rated Group 715 | . . . 126 104 104 . . 715 . . . . Highest-Rated Ally 50 | . . . 31 31 27 . . 50 . . . . Total Orders 1 | . . . . . 1 . . . . . . . STAY 1 | . . . . . 1 . . . . . . . Ally Attacks 235 | . . . 121 2 . . . 112 . . . . Total Damage 4256 | . . . 1370 20 . . . 2866 . . . . Kills 17 | . . . 14 . . . . 3 . . . . Allies Corrupted . | . . . . . . . . . . . . . Allies Melted . | . . . . . . . . . . . . . Intel | -11 -10 -9 -9 -9 -9 -6 -5 -5 -5 -4 -3 -3 ------- Run | Yrd Mat Mat Sto Rec Scr Fac Fac Was Fac Fac Res Qua Active Infowar (turns) 5685 | 19 79 . . . 1015 691 14 180 2181 433 507 566 Sensors 4032 | . . . . . . 565 14 180 2165 391 355 362 Terrain 2 | . . . . . . . . . 2 . . . Structural 5011 | . 2 . . . 1015 691 14 180 2181 295 506 127 Seismic 1700 | 19 77 . . . . 125 13 180 1286 . . . Machine Analysis 1487 | . . . . . . . . . . 414 507 566 Cloaking 472 | . . . . . . . . . 471 . . 1 Jamming 3 | . . . . . . . . . . . . 3 Robot Analysis Total 4 | . . . . . 4 . . . . . . . Derelict Logs Recovered . | . . . . . . . . . . . . . Drone Launches . | . . . . . . . . . . . . . Drone Recoveries . | . . . . . . . . . . . . . Exploration | -11 -10 -9 -9 -9 -9 -6 -5 -5 -5 -4 -3 -3 ------------- Run | Yrd Mat Mat Sto Rec Scr Fac Fac Was Fac Fac Res Qua Turns Passed 16105 | 278 2298 3048 1221 1370 3264 691 14 180 2181 487 507 566 Spaces Moved 13832 | 122 888 1091 440 533 1760 1288 50 382 4198 1017 1552 511 Core 30 | 3 . . . . . . . . . . . 27 Treads 3883 | 119 888 400 440 533 1503 . . . . . . . Legs 691 | . . 691 . . . . . . . . . . Wheels . | . . . . . . . . . . . . . Hover 6 | . . . . . . . . . . . . 6 Flight 9222 | . . . . . 257 1288 50 382 4198 1017 1552 478 Fastest Speed 5 | 50 160 160 160 240 31 24 24 24 11 11 5 27 Average Speed 85 | 157 199 218 232 240 183 24 24 24 20 17 15 52 Slowest Speed 400 | 160 320 400 240 240 240 25 24 24 29 57 64 250 Overloaded Moves 30 | . . . . . . . . . . . 30 . Propulsion Burnouts . | . . . . . . . . . . . . . Robots Hopped 39 | . . . . . . 1 . . 22 3 8 5 Potential Cave-ins 2 | . . . . . . . . . . 2 . . Cave-ins Triggered . | . . . . . . . . . . . . . Teleports 1 | . . . . . . . . . . . . 1 Exploration Rate (%) 54 | 7 95 86 52 93 89 30 1 95 68 25 42 30 Regions Visited 12 Branch Regions 4 Pre-discovered Areas 2 | . . . . . 1 1 . . . . . . Known Exits Taken 4 | . . . . . . 1 . . 1 1 1 . Unknown Exits Taken 6 | 1 1 1 1 1 1 . . . . . . . Scrap Searched 7 | . . . . . 7 . . . . . . . Spaces Dug 106 | . . . . . . 12 . . 49 15 30 . Terrain Destroyed 174 | . . 24 . . . 12 . 43 49 15 30 1 Melee 106 | . . . . . . 12 . . 49 15 30 . Projectile 1 | . . . . . . . . . . . . 1 AOE 67 | . . 24 . . . . . 43 . . . . Terrain Rammed . | . . . . . . . . . . . . . Walls Destroyed . | . . . . . . . . . . . . . Machines Disabled . | . . . . . . . . . . . . . Actions | -11 -10 -9 -9 -9 -9 -6 -5 -5 -5 -4 -3 -3 --------- Run | Yrd Mat Mat Sto Rec Scr Fac Fac Was Fac Fac Res Qua Total 16974 | 167 1205 1417 580 599 1797 1627 52 466 5336 1276 1729 723 Wait 1977 | 14 175 99 65 18 9 306 . 76 776 188 118 133 Move 13746 | 121 887 1090 439 532 1759 1285 50 381 4155 1010 1536 501 Hop 36 | . . . . . . 1 . . 20 3 7 5 Pick Up 171 | 6 10 17 10 . 2 3 . 2 109 1 3 8 Fast Attach 77 | 6 7 10 4 . . 2 . . 24 8 10 6 Attach 55 | 1 3 5 2 . 6 5 2 1 3 14 4 9 Detach 18 | . 1 . . . . . . . 1 13 3 . Swap 46 | . 8 10 10 . 2 4 . 1 4 6 1 . Drop 201 | . 8 13 17 . 19 3 . 2 118 9 7 5 Fire 362 | 19 106 173 30 13 . . . 3 . . . 18 Melee 219 | . . . 3 . . 18 . . 108 24 40 26 Ram 6 | . . . . . . . . . . . . 6 Kick . | . . . . . . . . . . . . . Crush . | . . . . . . . . . . . . . Escape Stasis 24 | . . . . . . . . . 18 . . 6 Rewire 36 | . . . . 36 . . . . . . . . Trap . | . . . . . . . . . . . . . Miscellaneous . | . . . . . . . . . . . . . Route ------- -11/Scrapyard -10/Materials (discovered 5 exits: *Mat x3 / [*Min x2]) -9/Materials (discovered 4 exits: [*Mat x3] / *Sto) -9/Storage -9/Recycling -9/Scraptown (discovered 2 exits: *Fac x2) -6/Factory (discovered 4 exits: *Fac x2 / *Low x2) -5/Factory -5/Waste -5/Factory (discovered 8 exits: *Fac x4 / *Upp x2 / *Ext x2) -4/Factory (discovered 5 exits: *Res x4 / *Upp) -3/Research (discovered 4 exits: *Res / Arm / *Qua x2) -3/Quarantine History --------- Turn | Location | Event 4 | -11/Scrapyard | Discovered new exit (range 15) 279 | -11/Scrapyard | Entered Materials 313 | -10/Materials | Build established: Mutant 515 | -10/Materials | Discovered new exit (range 15) 838 | -10/Materials | Discovered new exit (range 6) 899 | -10/Materials | Repaired Med. Laser 930 | -10/Materials | Repaired Lgt. Treads 990 | -10/Materials | Core integrity fell below 50% 1267 | -10/Materials | Discovered new exit (range 15) 1379 | -10/Materials | Derelicts attacked the area 1570 | -10/Materials | Discovered new exit (range 8) 1897 | -10/Materials | Discovered new exit (range 10) 2577 | -10/Materials | Entered another Materials area 2577 | -9/Materials | Evolved 2 slots: Propulsion x2 3158 | -9/Materials | Discovered new exit (range 7) 3212 | -9/Materials | Discovered new exit (range 16) 4141 | -9/Materials | Discovered new exit (range 16) 4231 | -9/Materials | Core integrity fell below 50% 5074 | -9/Materials | Build established: Scavenger-Mutant 5236 | -9/Materials | Discovered new exit (range 3) 5625 | -9/Materials | Entered Storage 5715 | -9/Storage | Build established: Mutant 6438 | -9/Storage | Assisted by bots powering up and referring to "LRC-V3" 6578 | -9/Storage | Lost 3 allies 6649 | -9/Storage | Met a pair of Derelict thieves 6671 | -9/Storage | Core integrity fell below 20% 6747 | -9/Storage | Lost 6 allies 6834 | -9/Storage | Used back door to open Recycling access 6834 | -9/Storage | Discovered new exit (range 5) 6846 | -9/Storage | Entered Recycling 6846 | -9/Recycling | Accompanied by 2 allies 8155 | -9/Recycling | Scanned before Scraplab entrance 8189 | -9/Recycling | Entered Scraplab 8208 | -9/Recycling | Discovered new exit (range 3) 8216 | -9/Recycling | Entered Scraptown 8216 | -9/Scraptown | Accompanied by 5 allies 8406 | -9/Scraptown | Build established: Commander-Mutant 8444 | -9/Scraptown | Heard Great Nut preacher, LISTEN AND RECITE! 8492 | -9/Scraptown | Visited Shadow of the Wyrm 8531 | -9/Scraptown | Visited The Evicted 8562 | -9/Scraptown | Visited Awakened 8600 | -9/Scraptown | Visited Symbiants 8624 | -9/Scraptown | Visited Assassins FH 8699 | -9/Scraptown | Visited Fellowship of the Rings 8737 | -9/Scraptown | Visited CPS Storage 8888 | -9/Scraptown | Learned location of Extension (-5) 9263 | -9/Scraptown | Discovered new exit (range 11) 9488 | -9/Scraptown | Visited UFD Registry 9488 | -9/Scraptown | Registered with UFD as "Chainform" 9548 | -9/Scraptown | Visited Junk Repository 9642 | -9/Scraptown | Visited Curators Association 9736 | -9/Scraptown | Visited Junk Repository 9803 | -9/Scraptown | Visited Analyses Database 9853 | -9/Scraptown | Visited Infowarlord's Domain 9884 | -9/Scraptown | Visited Science Testing Area 9916 | -9/Scraptown | Visited DA-N13 Charitable Foundation 9925 | -9/Scraptown | Found DCF Scrap (31 items) 10026 | -9/Scraptown | Visited Observation Area 10136 | -9/Scraptown | Visited Cartography Club 11037 | -9/Scraptown | Found Exp. Signal Interpreter 11212 | -9/Scraptown | Visited Scrap Suit Storage 11289 | -9/Scraptown | Discovered new exit (range 5) 11461 | -9/Scraptown | Met Optimus 11461 | -9/Scraptown | Accepted into 0bPrime 11480 | -9/Scraptown | Entered Factory 11480 | -6/Factory | Evolved 6 slots: Propulsion x2, Utility x4 11806 | -6/Factory | Discovered new exit (range 6) 11842 | -6/Factory | Identified exit to Factory 11906 | -6/Factory | Build established: Hacker-Scout 11968 | -6/Factory | Loaded intel: 8 recycling unit locations 11974 | -6/Factory | Learned location of Protoforge (-3) 12049 | -6/Factory | Discovered new exit (range 4) 12050 | -6/Factory | Identified exit to Lower Caves 12106 | -6/Factory | Spotted B-75 Beast 12136 | -6/Factory | Discovered exit to Factory (range 9) 12171 | -6/Factory | Entered another Factory area 12171 | -5/Factory | Evolved 2 slots: Utility x2 12185 | -5/Factory | Sucked down chute 12185 | -5/Factory | Entered Waste 12186 | -5/Waste | Met a frightened Derelict 12189 | -5/Waste | Spotted C-40 Crusher 12207 | -5/Waste | Warlord forces began an assault 12209 | -5/Waste | Spotted C-40 Crusher 12214 | -5/Waste | Spotted C-40 Crusher 12214 | -5/Waste | Spotted C-40 Crusher 12214 | -5/Waste | Spotted C-40 Crusher 12216 | -5/Waste | Spotted C-40 Crusher 12306 | -5/Waste | Destroyed C-40 Crusher 12306 | -5/Waste | Destroyed C-40 Crusher 12310 | -5/Waste | Destroyed C-40 Crusher 12310 | -5/Waste | Destroyed C-40 Crusher 12328 | -5/Waste | Lost 11 allies 12341 | -5/Waste | Discovered new exit (range 13) 12365 | -5/Waste | Identified exit to Factory 12365 | -5/Waste | Entered Factory 12483 | -5/Factory | Identified exit to Upper Caves 12483 | -5/Factory | Identified exit to Extension 12580 | -5/Factory | Loaded intel: 8 recycling unit locations 12818 | -5/Factory | Identified exit to Factory 13194 | -5/Factory | Found Launcher Loader 13239 | -5/Factory | Found Launcher Loader 13319 | -5/Factory | Repaired Adv. Surge Thruster 13860 | -5/Factory | Fabricated Adv. Surge Thruster? 13863 | -5/Factory | Fabricated Adv. Surge Thruster? 13988 | -5/Factory | Fabricated Adv. Surge Thruster? 14054 | -5/Factory | Build established: Hacker-Ninja 14546 | -5/Factory | Entered another Factory area 14546 | -4/Factory | Evolved 2 slots: Power x1, Utility x1 14685 | -4/Factory | Identified exit to Research 14811 | -4/Factory | Discovered new exit (range 16) 14819 | -4/Factory | Identified exit to Upper Caves 15033 | -4/Factory | Entered Research 15033 | -3/Research | Evolved 2 slots: Propulsion x1, Utility x1 15213 | -3/Research | Discovered new exit (range 16) 15226 | -3/Research | Identified exit to Research 15262 | -3/Research | Build established: Hacker-Scout 15306 | -3/Research | Identified exit to Armory 15306 | -3/Research | Identified exit to Quarantine 15345 | -3/Research | Loaded intel: 5 recycling unit locations 15395 | -3/Research | Found Prototype Device 15395 | -3/Research | Identified Exp. Thermal Shield 15520 | -3/Research | System corruption reached 10% 15531 | -3/Research | Spotted B-86 Titan 15540 | -3/Research | Entered Quarantine 15550 | -3/Quarantine | Found Alien Artifact 15571 | -3/Quarantine | Lost 12 parts (2p6n3u1w) 15643 | -3/Quarantine | Found Alien Energy Cannon 15655 | -3/Quarantine | Identified Core Cannon 15812 | -3/Quarantine | Identified Transdimensional Reconstructor 15812 | -3/Quarantine | Warped through subspace 15843 | -3/Quarantine | Lost 3 parts (1p2n) 16015 | -3/Quarantine | Core integrity fell below 50% 16044 | -3/Quarantine | Core integrity fell below 20% 16054 | -3/Quarantine | Lost 5 parts (4u1w) 16106 | -3/Quarantine | Destroyed by P-80 Master with Gamma Rifle Last Messages --------------- 16049_ R-10 Processor collects Gamma Rifle. 16049_ Sneak attack on R-10 Processor. 16049_ R-10 Processor suffers critical hit (Impale). 16049_ R-10 Processor destroyed. 16053_ PA/L|6DB&NF&>52TV2#TCMOSPQL3G 16057_ R-10 Processor collects Hpw. Tractor Beam. 16057_ Acquired 67 matter. 16060_ Acquired Imp. Antigrav System. 16061_ R-10 Processor collects Gamma Rifle. 16062_ Acquired Imp. Antigrav System. 16064_ Sneak attack on R-10 Processor. 16064_ R-10 Processor destroyed. 16067_ Acquired 82 matter. 16070_ Acquired Mic. Antimatter Reactor. 16076_ System corrupted: Energy discharge (-46). 16090_ P-80 Master destroyed. 16091_ System corrupted: Matter fused (-10). 16096_ Imp. Antigrav System destroyed. 16099_ Destroyed Gamma Rifle. 16099_ P-80 Master destroyed. Map ----- +----------------------------------------------------+ | ?????????????????????????????????????????????????? | | ?????????????????????????????????????????????????? | | ?????????????????????????????????????????????????? | | ?????????????????????????????????????????????????? | | ?????????????????????????????????????????????????? | | ?????????????????????????????????????????????????? | | ?????????????????????????????????????????????????? | | ?????????????????????????????????????????????????? | | ????????########?????????????????????????????????? | | ?###############?????????????????????????????????? | | ?######### ##?????????????????????????????????? | | ?##!!"" # ##?????????????????????????????????? | | ?##!"" # ##?????????????????????????????????? | | ?##"" + ##?????????????????????????????????? | | ?##" # ##?????????????????????????????????? | | ?##"" # ##?????????????????????????????????? | | ?##!"" # ##??#########??????????????????????? | | ?##!!"T # ##??############???????????????????? | | ?######### ##??## ! #???????????????????? | | ?######### ##??## "" ##??????????????????? | | ??######## ##??## """ ##??????????????????? | | ??##"""### ##??## """ ##??????????????????? | | ####"T"### ##??## w !""" ##??????????????????? | | ####" "### ##??## !=!! ##??????????????????? | | # ##??## !!!!!" ##??????????????????? | | ! # ###### !=[%@!* ##??????????????????? | | "" # ##########p######??????????????????? | | """" + !=!%|! ########## ??????????? | | """" # =[%==[ ###########??####+#### | | """" # *!=! # ##??# | | # # ????# | | # ########## # "" ##??# | | #####+#### # ## # " ##??# ?? | | ##### #### # """"" ## # """ " ##??# #??? | | ???## #### # " "" ## + " """ ##??# #??? | | ##### #### # """ + # """"" ????# #### | | #####+#### # " ## # ##??# | | # ] # # """ ## # ###?# | | # " """ # # ##### ############## | | # " " " # ####+######## | | # " """ # ! ################# | | # "" + #######?????????# | | # " """ # ##?#####?######## | | # " "!" ### ## ####### ##?# #?# | | # " """ ### ## ####### ######?# #?# | | # ##??? ## ##???## ######## ### | | ###########???### ##???## ^ | | ###########????## ##???## #########+#+#### | | ???????????????## ##???## """ #?# = ! = | | ???????????????## ##???## """ =#?# | +----------------------------------------------------+ Best States ------------- Heat Dissipation 77 Energy Generation 44 Energy Capacity 500 Matter Stores 300 Matter Capacity 300 Sight Range 16 Robot Scan Range 16 Terrain Scan Density 10 Cloak Strength 2 Power Amplification 30 Armor Coverage 225 Evasion (%) 67 Recoil Reduction 4 Offensive Hacking 24 Defensive Hacking 42 Authchip Count 2 Item Schematics ----------------- Adv. Surge Thruster | -5/Factory | Scanalyzed Adv. System Shield | -5/Factory | Scanalyzed Robot Schematics ------------------ None Fabricated ------------ Adv. Surge Thruster | x2 | -5/Factory Adv. Surge Thruster | x2 | -5/Factory Adv. Surge Thruster | x2 | -5/Factory Repaired ---------- Med. Laser | 2% | -10/Materials Lgt. Treads | 16% | -10/Materials Adv. Surge Thruster | 73% | -5/Factory Alien Tech Used ----------------- Core Cannon Transdimensional Reconstructor Achievements -------------- None Challenges ------------ None Game ------ Seed WardronePlasmaKit Manual? 0 Play Time 02:12:03 Cumulative 120.7 hours Start 2025.06.08 @ 23:47:34 End 2025.06.09 @ 02:10:42 Sessions 1 Manual Loads 0 Difficulty Rogue Special Mode None Game No. 127 Rogue 127 Adventurer 0 Explorer 0 Win Type - Total 6 Types 4/0/0/2/0/0/0/0/0/0 Lore% 57 Gallery% 55 Achievement% 52 Wizard Run 0 Options --------- Layout 1 ASCII 0 Keyboard 0 Movement Numpad Keybinds 0 Fullscreen 1 Font 32/SmallcapsGlow Map View 77x35 Zoom Use 0% Tactical HUD 1 Map Filters NONE Filters NONE Steam 1 RUN: fb8c0531-f204-42ad-8289-47391627f117